bitfinex/quotes_SOLUSD_20240708
["timestamp","ask_amount","ask_price","bid_price","bid_amount"]
[1720444760838,7.0704,141.44,141.4,1.41382374]
[1720444761022,7.2406,141.43,141.38,16.3251]
[1720444761210,0.17,141.43,141.39,1.12863782]
[1720444761413,0.17,141.43,141.4,1.31875633]
[1720444761624,0.17,141.44,141.4,1.31875633]
[1720444762313,7.0693,141.46,141.4,1.31875633]
[1720444762517,17.6689,141.5,141.4,1.31875633]
[1720444762813,7.0674,141.5,141.42,22.6757]
[1720444763026,7.0674,141.5,141.43,1.32524848]
[1720444763431,7.0674,141.5,141.44,0.17]
[1720444763741,7.0674,141.5,141.44,1.49506109]
[1720444763938,7.0676,141.49,141.44,1.32506109]
[1720444764119,17.6652,141.53,141.42,22.6757]
[1720444764437,20.0,141.52,141.43,0.17]
[1720444764642,7.0685,141.48,141.42,22.6757]
[1720444764828,7.0689,141.47,141.43,1.41316615]
[1720444765140,0.17,141.46,141.43,1.41316615]
[1720444765515,7.0683,141.48,141.43,1.41316615]
[1720444765715,7.0696,141.45,141.42,22.6757]
[1720444766330,7.0692,141.46,141.42,22.6757]
[1720444766540,0.17,141.45,141.42,22.6757]
[1720444766713,7.2397,141.45,141.42,22.6757]
[1720444766919,0.17,141.45,141.42,22.6757]
[1720444767241,7.2399,141.45,141.42,22.6757]
[1720444767747,0.17,141.45,141.42,22.6757]
[1720444768238,20.17,141.45,141.39,21.856]
[1720444768440,7.0718,141.41,141.39,21.856]
[1720444768749,7.0728,141.39,141.35,21.856]
[1720444768921,0.17,141.38,141.35,21.856]
[1720444769123,7.2434,141.38,141.35,21.856]
[1720444769758,0.17,141.38,141.35,21.856]
[1720444770089,7.0751,141.34,141.31,24.456]
[1720444770287,0.17,141.34,141.31,24.456]
[1720444770640,0.17,141.35,141.31,24.456]
[1720444771445,0.17,141.35,141.32,1.4142688]
[1720444771774,0.17,141.35,141.31,24.456]
[1720444772473,20.17,141.36,141.32,1.41039006]
[1720444772680,20.17,141.36,141.33,1.41029026]
[1720444773044,0.17,141.36,141.33,1.41029026]
[1720444773546,0.17,141.36,141.34,1.40989424]
[1720444773876,15.0,141.47,141.31,24.456]
[1720444773877,17.6772,141.43,141.32,1.41009072]
[1720444774065,7.0724,141.4,141.33,1.58465152]
[1720444774253,7.0727,141.39,141.33,1.58465152]
[1720444774647,7.0715,141.42,141.33,0.17]
[1720444774842,7.0715,141.42,141.32,20.34]
[1720444775684,7.0716,141.41,141.32,20.34]
[1720444775890,7.0712,141.42,141.32,20.34]
[1720444776066,7.0696,141.45,141.34,6.0767]
[1720444776266,35.3328,141.52,141.36,15.9756]
[1720444776567,52.9987,141.52,141.37,0.34]
[1720444776774,17.6659,141.52,141.38,6.0767]
[1720444776967,7.0685,141.48,141.39,20.34]
[1720444777166,7.0685,141.48,141.4,0.70999959]
[1720444777370,7.0685,141.48,141.41,0.17]
[1720444777577,11.93439297,141.54,141.42,0.70989917]
[1720444777776,8.48281665,141.58,141.43,0.17]
[1720444778014,8.48281665,141.58,141.44,6.0831]
[1720444778015,17.6585,141.58,141.44,6.0831]
[1720444778200,17.6585,141.58,141.45,0.8797486]
[1720444778383,17.661,141.56,141.46,0.76743614]
[1720444778701,7.0667,141.51,141.47,1.41335236]
[1720444779571,7.0667,141.51,141.45,1.58333104]
[1720444779777,17.661,141.56,141.45,1.58333104]
[1720444779974,17.661,141.56,141.45,1.41333104]
[1720444780199,7.0677,141.49,141.44,6.0831]
[1720444780405,17.6664,141.52,141.44,6.0831]
[1720444780712,7.0687,141.47,141.44,6.0831]
[1720444781080,20.0,141.51,141.42,15.8681]
[1720444781081,0.17,141.45,141.42,15.8681]
[1720444781300,7.0706,141.43,141.42,15.8681]
[1720444781581,0.17,141.43,141.42,15.8681]
[1720444782187,0.17,141.43,141.37,15.0161]
[1720444782188,20.0,141.43,141.37,15.0161]
[1720444782395,0.17,141.41,141.37,15.0161]
[1720444783074,0.17,141.4,141.37,15.0161]
[1720444784403,0.17,141.42,141.37,15.0161]
[1720444784593,7.2414,141.42,141.37,15.0161]
[1720444784790,0.17,141.4,141.37,15.0161]
[1720444786510,7.2422,141.4,141.37,15.0161]
[1720444786707,7.0726,141.39,141.37,15.0161]
[1720444786892,0.17,141.4,141.37,15.0161]
[1720444787321,7.0729,141.39,141.37,15.0161]
[1720444787502,0.17,141.38,141.37,15.0161]
[1720444789210,7.0722,141.4,141.35,6.4458]
[1720444789593,0.17,141.39,141.35,6.4458]
[1720444790493,7.0717,141.41,141.36,1.41470661]
[1720444791107,7.2422,141.4,141.36,1.41470661]
[1720444793600,0.17,141.4,141.36,1.41470661]
[1720444793806,7.2421,141.4,141.36,1.41470661]
[1720444794008,20.0,141.43,141.35,6.4458]
[1720444794009,7.073,141.39,141.35,6.4458]
[1720444794602,0.17,141.38,141.35,6.4458]
[1720444794811,7.2431,141.38,141.35,6.4458]
[1720444795001,0.17,141.38,141.33,15.574]
[1720444795307,7.0736,141.37,141.33,15.574]
[1720444795507,7.0731,141.38,141.33,15.574]
[1720444796023,0.17,141.37,141.33,15.574]
[1720444796611,7.2439,141.37,141.33,15.574]
[1720444797333,7.0741,141.36,141.33,15.574]
[1720444797504,7.0743,141.36,141.31,9.1148]
[1720444798028,0.17,141.35,141.31,9.1148]
[1720444799131,7.0738,141.37,141.31,9.1148]
[1720444799338,0.17,141.35,141.31,9.1148]
[1720444800144,7.2446,141.35,141.31,9.1148]
[1720444800430,0.17,141.35,141.31,2.6]
[1720444800616,0.17,141.32,141.31,2.6]
[1720444800818,7.0758,141.33,141.31,2.6]
[1720444801016,0.17,141.32,141.31,2.6]
[1720444801832,7.2461,141.32,141.31,2.6]
[1720444802528,0.17,141.32,141.31,2.6]
[1720444803114,20.0,141.35,141.31,2.6]
[1720444803513,27.0746,141.35,141.31,2.6]
[1720444803716,0.17,141.32,141.31,2.6]
[1720444803938,7.2461,141.32,141.31,2.6]
[1720444804236,27.2461,141.32,141.31,2.6]
[1720444804931,17.6851,141.37,141.31,2.6]
[1720444805110,7.0744,141.36,141.31,2.6]
[1720444805310,7.0738,141.37,141.31,2.6]
[1720444805518,7.0741,141.36,141.31,2.6]
[1720444806121,7.0738,141.37,141.31,2.6]
[1720444806331,20.0,141.35,141.31,2.6]
[1720444806727,7.0747,141.35,141.31,2.6]
[1720444806914,20.0,141.37,141.31,2.6]
[1720444807238,0.17,141.36,141.31,2.6]
[1720444807609,7.0746,141.35,141.31,2.6]
[1720444808113,7.0754,141.34,141.31,2.6]
[1720444808314,7.076,141.33,141.31,2.6]
[1720444808537,7.0761,141.32,141.31,2.6]
[1720444808927,7.0758,141.33,141.31,2.6]
[1720444809651,7.2461,141.32,141.31,2.6]
[1720444810443,27.2461,141.32,141.31,2.6]
[1720444811417,7.079,141.27,141.22,15.3313]
[1720444811819,7.0791,141.26,141.22,15.3313]
[1720444812036,7.0787,141.27,141.23,1.40567278]
[1720444812243,7.0783,141.28,141.23,1.40567278]
[1720444812449,0.17,141.3,141.23,1.40567278]
[1720444812615,20.0,141.33,141.23,1.40567278]
[1720444812817,0.17,141.32,141.23,1.40567278]
[1720444813024,0.17,141.28,141.23,1.40567278]
[1720444814540,7.2483,141.28,141.23,1.40567278]
[1720444815246,7.0766,141.32,141.23,1.40567278]
[1720444815561,35.3647,141.39,141.24,0.34]
[1720444815763,7.075,141.35,141.25,16.93805372]
[1720444816079,7.075,141.35,141.26,6.7831]
[1720444816226,7.075,141.35,141.27,1.40575483]
[1720444816631,7.075,141.35,141.28,0.17]
[1720444816848,0.17,141.34,141.28,1.58510716]
[1720444817056,7.2452,141.34,141.28,1.58510716]
[1720444817232,7.0763,141.32,141.28,1.58510716]
[1720444817429,7.0763,141.32,141.28,1.41510716]
[1720444817848,0.17,141.33,141.27,1.41510716]
[1720444818029,7.0768,141.31,141.27,1.41510716]
[1720444818334,0.17,141.3,141.27,1.41510716]
[1720444818533,7.0777,141.29,141.26,7.85820716]
[1720444818730,7.0777,141.29,141.26,1.41510716]
[1720444819454,7.0777,141.29,141.25,15.5321]
[1720444819455,7.0791,141.26,141.25,15.5321]
[1720444819657,7.0791,141.26,141.23,6.4939]
[1720444819962,7.0791,141.26,141.21,16.2014]
[1720444820129,7.0787,141.27,141.21,16.2014]
[1720444820539,0.17,141.26,141.21,16.2014]
[1720444820772,7.0783,141.28,141.22,0.56210143]
[1720444821060,0.17,141.27,141.22,0.56210143]
[1720444821358,7.2489,141.27,141.22,0.56210143]
[1720444821526,7.0794,141.26,141.22,0.56210143]
[1720444821731,0.17,141.27,141.22,1.02308943]
[1720444821732,7.2488,141.27,141.22,1.02308943]
[1720444822044,0.17,141.27,141.22,1.02308943]
[1720444822358,0.17,141.3,141.23,0.17]
[1720444822530,20.0,141.32,141.23,1.19294455]
[1720444822725,0.17,141.29,141.23,1.19294455]
[1720444823245,27.2476,141.29,141.23,1.19294455]
[1720444823559,20.17,141.29,141.23,1.19294455]
[1720444823751,7.0786,141.27,141.23,1.19294455]
[1720444824238,7.0783,141.28,141.23,1.19294455]
[1720444825557,7.0786,141.27,141.23,1.02294455]
[1720444825865,0.17,141.29,141.22,1.19294457]
[1720444826038,7.2476,141.29,141.22,1.19294457]
[1720444826242,0.17,141.29,141.22,1.19294457]
[1720444826457,7.2477,141.29,141.22,1.19294457]
[1720444826644,0.17,141.29,141.23,33.74]
[1720444826845,20.17,141.29,141.24,1.23732817]
[1720444827342,20.17,141.29,141.23,33.74]
[1720444827654,20.0,141.31,141.22,0.17]
[1720444827855,0.17,141.3,141.22,0.17]
[1720444828168,7.0783,141.28,141.22,0.17]
[1720444829766,17.8631,141.3,141.22,0.17]
[1720444829958,17.8631,141.3,141.21,16.2014]
[1720444829959,20.0,141.29,141.21,16.2014]
[1720444830159,7.0794,141.26,141.21,16.2014]
[1720444830351,7.0794,141.26,141.22,0.67973536]
[1720444831769,0.17,141.25,141.22,0.67973536]
[1720444832449,0.17,141.25,141.22,1.41596147]
[1720444832774,7.0811,141.22,141.21,0.2]
[1720444832946,7.2511,141.22,141.21,0.2]
[1720444833895,27.2511,141.22,141.21,0.2]
[1720444836060,24.7857,141.21,141.2,277.569966]
[1720444836265,45.1257,141.21,141.2,277.569966]
[1720444836945,44.9557,141.21,141.2,277.569966]
[1720444837167,27.2516,141.21,141.2,277.569966]
[1720444840779,27.4216,141.21,141.2,277.569966]
[1720444841858,27.2516,141.21,141.2,277.569966]
[1720444842092,27.4216,141.21,141.2,277.569966]
[1720444845600,27.4216,141.21,141.2,243.34073756]
[1720444847302,27.4216,141.21,141.2,225.84284665]
[1720444847775,27.4216,141.21,141.2,124.12085858]
[1720444847978,81.86942598,141.21,141.2,124.12085858]
[1720444848200,81.86942598,141.21,141.2,121.99020461]
[1720444848387,81.86942598,141.21,141.2,99.37020462]
[1720444848701,7.0861,141.12,141.11,0.2]
[1720444848924,7.2561,141.12,141.11,0.2]
[1720444849110,27.2561,141.12,141.11,0.2]
[1720444849398,35.4169,141.18,141.11,0.2]
[1720444849587,7.085,141.15,141.11,0.2]
[1720444849789,20.0,141.14,141.11,0.2]
[1720444850103,7.0856,141.13,141.11,0.2]
[1720444850510,27.0853,141.14,141.11,0.2]
[1720444850883,7.2558,141.13,141.11,0.2]
[1720444851216,7.0842,141.16,141.11,0.2]
[1720444851587,0.17,141.15,141.11,0.2]
[1720444851788,7.2546,141.15,141.11,0.2]
[1720444852206,0.17,141.15,141.11,0.2]
[1720444852413,17.7048,141.21,141.12,15.6266]
[1720444852711,17.7048,141.21,141.13,6.4347]
[1720444852911,62.55162598,141.24,141.13,6.4347]
[1720444853120,62.55162598,141.24,141.13,40.1747]
[1720444853121,7.0822,141.2,141.13,40.1747]
[1720444853293,7.0818,141.21,141.13,40.1747]
[1720444853700,7.0821,141.2,141.13,40.1747]
[1720444854293,17.7013,141.24,141.13,40.1747]
[1720444854694,7.0818,141.21,141.15,33.74]
[1720444855005,20.0,141.2,141.16,1.0110667]
[1720444855227,17.6974,141.27,141.16,1.0110667]
[1720444855397,7.0796,141.26,141.18,6.4505]
[1720444855591,7.0799,141.25,141.18,6.4505]
[1720444855791,7.0801,141.24,141.19,1.41610034]
[1720444856023,7.0801,141.24,141.19,35.15610034]
[1720444857415,7.0808,141.23,141.19,35.15610034]
[1720444858418,7.0808,141.23,141.19,1.41610034]
[1720444858592,7.0808,141.23,141.18,6.4505]
[1720444859320,7.0802,141.24,141.19,0.17]
[1720444859506,7.0812,141.22,141.18,6.4505]
[1720444860635,7.0816,141.21,141.18,6.4505]
[1720444860806,7.0813,141.22,141.18,6.4505]
[1720444861132,17.6981,141.26,141.18,6.4505]
[1720444861133,7.2517,141.21,141.18,6.82067235]
[1720444861309,7.2517,141.21,141.18,7.86690417]
[1720444862011,17.6952,141.29,141.18,41.60690417]
[1720444862204,7.0794,141.26,141.18,41.60690417]
[1720444862404,7.0788,141.27,141.2,16.1534]
[1720444862615,7.0788,141.27,141.21,1.41592178]
[1720444863031,7.0791,141.26,141.21,1.41592178]
[1720444863232,7.0805,141.24,141.21,1.41592178]
[1720444863437,17.697,141.27,141.2,16.1534]
[1720444863729,7.2515,141.22,141.2,16.1534]
[1720444863953,0.17,141.22,141.2,16.1534]
[1720444864136,20.0,141.24,141.2,16.1534]
[1720444864306,0.17,141.23,141.2,16.1534]
[1720444864707,7.0816,141.21,141.2,16.1534]
[1720444865138,7.2516,141.21,141.2,16.1534]
[1720444865736,0.17,141.21,141.2,16.1534]
[1720444865913,7.0807,141.23,141.2,16.1534]
[1720444866119,0.17,141.22,141.2,16.1534]
[1720444866638,7.0813,141.22,141.2,16.1534]
[1720444867136,7.2508,141.23,141.2,16.1534]
[1720444867921,7.0811,141.22,141.2,16.1534]
[1720444868511,0.17,141.21,141.17,15.9102]
[1720444868716,7.2535,141.18,141.17,15.9102]
[1720444869043,7.0845,141.16,141.14,22.1945]
[1720444869336,7.2546,141.15,141.14,15.9102]
[1720444870239,0.17,141.15,141.14,15.9102]
[1720444871329,7.2546,141.15,141.14,15.9102]
[1720444871647,35.4076,141.22,141.11,0.2]
[1720444871648,0.17,141.12,141.11,0.2]
[1720444871812,7.0847,141.15,141.11,0.2]
[1720444872248,0.17,141.14,141.11,0.2]
[1720444872416,7.2551,141.14,141.11,0.2]
[1720444872949,7.0856,141.13,141.11,0.2]
[1720444873243,0.17,141.12,141.11,0.2]
[1720444875351,7.2561,141.12,141.11,0.2]
[1720444875540,27.2561,141.12,141.11,0.2]
[1720444876051,7.2561,141.12,141.11,0.2]
[1720444876943,27.2561,141.12,141.11,0.2]
[1720444877945,20.17,141.12,141.11,0.2]
[1720444878155,7.2561,141.12,141.11,0.2]
[1720444878729,27.2561,141.12,141.11,0.2]
[1720444880128,20.0,141.12,141.11,0.2]
[1720444880432,7.0831,141.18,141.12,15.7194]
[1720444880754,7.0842,141.16,141.13,1.33817073]
[1720444881135,7.0838,141.17,141.13,1.33817073]
[1720444881330,7.0833,141.18,141.13,1.33817073]
[1720444881535,17.7024,141.23,141.14,6.6634]
[1720444881839,17.7048,141.21,141.14,6.6634]
[1720444882142,7.0846,141.15,141.13,1.34050871]
[1720444882457,17.7093,141.17,141.12,15.7194]
[1720444882631,0.17,141.16,141.12,15.7194]
[1720444882953,0.17,141.15,141.12,15.7194]
[1720444883129,7.0838,141.17,141.12,15.7194]
[1720444883929,7.0833,141.18,141.13,1.41196627]
[1720444884270,7.0829,141.19,141.13,1.41196627]
[1720444884553,7.2536,141.18,141.13,1.41196627]
[1720444884853,0.17,141.18,141.13,1.41196627]
[1720444885062,7.0843,141.16,141.12,49.4594]
[1720444885358,17.7068,141.19,141.12,15.7194]
[1720444885359,0.17,141.15,141.12,15.7194]
[1720444885533,7.0841,141.16,141.12,15.7194]
[1720444886266,0.17,141.15,141.12,15.7194]
[1720444887255,17.8794,141.17,141.12,15.7194]
[1720444887557,0.17,141.13,141.12,15.7194]
[1720444891367,7.2556,141.13,141.12,15.7194]
[1720444892039,7.0861,141.12,141.11,0.2]
[1720444892858,27.2561,141.12,141.11,0.2]
[1720444895585,0.17,141.12,141.11,0.2]
[1720444895869,7.085,141.15,141.11,0.2]
[1720444896174,7.0857,141.13,141.11,0.2]
[1720444896551,7.0861,141.12,141.11,0.2]
[1720444897075,7.2561,141.12,141.11,0.2]
[1720444897657,27.2561,141.12,141.11,0.2]
[1720444899078,7.2561,141.12,141.11,0.2]
[1720444902159,7.4261,141.12,141.11,0.2]
[1720444902356,27.4261,141.12,141.11,0.2]
[1720444904479,33.74,141.16,141.11,21.6203]
[1720444904678,6.3825,141.36,141.27,7.0785]
[1720444904889,12.05828075,141.36,141.22,33.74]
[1720444905186,20.45418795,141.35,141.24,33.74]
[1720444905384,20.45418795,141.35,141.25,8.49302805]
[1720444905688,7.0772,141.3,141.25,8.49292805]
[1720444906275,17.6902,141.33,141.24,33.74]
[1720444906483,7.079,141.27,141.22,7.0809]
[1720444907201,17.6902,141.33,141.23,1.41312783]
[1720444907494,17.6902,141.33,141.18,21.41312783]
[1720444907785,7.0777,141.29,141.24,7.08]
[1720444908109,7.0766,141.31,141.26,7.0788]
[1720444908387,6.3825,141.36,141.27,1.41212753]
[1720444908696,6.3825,141.36,141.27,7.0785]
[1720444908697,7.0766,141.31,141.27,7.0785]
[1720444909062,7.0766,141.31,141.26,7.079]
[1720444909308,7.0771,141.3,141.25,7.0796]
[1720444909599,7.0771,141.3,141.26,1.41172765]
[1720444909760,17.6906,141.32,141.23,1.19240337]
[1720444909962,7.0785,141.28,141.23,7.0804]
[1720444910163,17.6906,141.32,141.23,7.0804]
[1720444910380,20.0,141.31,141.24,1.41574841]
[1720444910572,7.0783,141.28,141.24,1.41574841]
[1720444910775,7.0783,141.28,141.24,7.08]
[1720444911094,20.0,141.31,141.19,1.56146758]
[1720444911266,7.0782,141.28,141.23,7.0801]
[1720444911475,7.0782,141.28,141.24,1.41155331]
[1720444912074,7.0782,141.28,141.23,7.0801]
[1720444912273,7.0782,141.28,141.24,8.4915533]
[1720444912590,20.0,141.31,141.25,8.4900537]
[1720444912767,20.0,141.31,141.19,0.17]
[1720444912768,20.0,141.34,141.26,8.48985381]
[1720444912972,20.0,141.34,141.27,1.41557558]
[1720444913277,7.0771,141.31,141.27,1.41557558]
[1720444913594,7.0762,141.32,141.27,8.49377558]
[1720444913778,7.0762,141.32,141.27,7.0782]
[1720444913979,7.0767,141.31,141.27,7.0782]
[1720444914178,17.6895,141.33,141.19,1.58550816]
[1720444914399,7.0777,141.29,141.25,7.0795]
[1720444914694,7.0771,141.3,141.26,8.49456349]
[1720444914903,7.0771,141.3,141.26,7.0789]
[1720444915395,7.0771,141.3,141.25,7.0796]
[1720444916090,7.0776,141.29,141.25,7.0796]
[1720444916469,7.0776,141.29,141.22,7.0789]
[1720444916669,7.0776,141.29,141.24,7.0799]
[1720444916869,7.0776,141.29,141.24,8.49556072]
[1720444917792,7.0776,141.29,141.25,7.0794]
[1720444918999,7.0772,141.3,141.25,7.0794]
[1720444919204,7.0782,141.28,141.24,7.08]
[1720444919394,17.6926,141.31,141.23,1.41575061]
[1720444919702,7.078,141.29,141.24,8.49552526]
[1720444920003,7.0781,141.28,141.24,7.0797]
[1720444920589,7.0777,141.29,141.25,7.0796]
[1720444920921,7.0767,141.31,141.26,8.49474609]
[1720444921214,17.6886,141.34,141.24,7.0796]
[1720444921512,7.0771,141.3,141.26,7.079]
[1720444921708,17.685,141.37,141.27,1.41564142]
[1720444922009,17.687,141.35,141.26,16.1381]
[1720444922210,20.0,141.34,141.26,16.1381]
[1720444922584,7.0769,141.31,141.27,7.0783]
[1720444923086,7.0772,141.3,141.26,23.2171]
[1720444923287,7.0776,141.29,141.26,16.1381]
[1720444924407,7.0762,141.32,141.28,7.078]
[1720444924597,17.6862,141.36,141.29,7.0771]
[1720444925303,7.0759,141.33,141.29,7.0771]
[1720444925508,17.6862,141.36,141.26,16.1381]
[1720444925509,17.6882,141.34,141.26,16.1381]
[1720444925710,35.3715,141.36,141.26,16.1381]
[1720444925908,7.0778,141.29,141.26,16.1381]
[1720444926285,7.0767,141.31,141.27,7.0785]
[1720444926493,7.0761,141.32,141.28,7.0779]
[1720444926700,7.0761,141.32,141.27,7.0784]
[1720444927203,17.8576,141.35,141.28,7.0781]
[1720444927402,7.0758,141.33,141.29,7.0776]
[1720444927805,7.0761,141.32,141.28,7.0779]
[1720444928694,7.0761,141.32,141.29,1.32616783]
[1720444929318,7.0771,141.3,141.27,1.41187725]
[1720444929812,7.0768,141.31,141.27,8.49047725]
[1720444930114,7.0762,141.32,141.28,7.078]
[1720444930421,7.0762,141.32,141.29,1.41167739]
[1720444930718,17.6839,141.38,141.3,1.41157751]
[1720444930893,7.0759,141.33,141.29,8.48990566]
[1720444931219,7.0767,141.31,141.27,7.0784]
[1720444931394,7.0771,141.3,141.26,23.217]
[1720444931804,7.0768,141.31,141.27,7.0785]
[1720444932023,7.0762,141.32,141.28,7.0781]
[1720444932610,48.31775106,141.4,141.29,1.41538484]
[1720444932816,20.0,141.39,141.3,1.415035]
[1720444933317,7.0749,141.35,141.31,7.0762]
[1720444933627,7.0752,141.34,141.32,1.41503648]
[1720444933812,7.0756,141.33,141.29,7.0776]
[1720444934026,17.6855,141.36,141.26,16.1381]
[1720444934324,7.0764,141.32,141.27,0.728959]
[1720444934690,7.0757,141.33,141.28,0.8277279]
[1720444935300,7.0753,141.34,141.3,7.077]
[1720444935509,7.0753,141.34,141.31,0.82755217]
[1720444935711,27.0747,141.35,141.31,7.90395217]
[1720444936118,27.0747,141.35,141.31,8.30705454]
[1720444936319,7.0752,141.34,141.3,7.077]
[1720444936507,7.0756,141.33,141.31,1.2303716]
[1720444937607,7.0756,141.33,141.3,1.23509581]
[1720444938516,7.0753,141.34,141.3,1.23509581]
[1720444938718,7.0753,141.34,141.31,1.41504528]
[1720444939310,7.0756,141.33,141.28,33.72]
[1720444939522,7.0761,141.32,141.28,33.72]
[1720444940410,7.0761,141.32,141.29,0.4497775]
[1720444940610,7.0761,141.32,141.29,1.41526852]
[1720444941032,7.0761,141.32,141.3,1.41516835]
[1720444942431,7.0758,141.33,141.3,1.41516835]
[1720444942618,7.0752,141.34,141.3,1.41516835]
[1720444942928,7.0752,141.34,141.3,8.49196835]
[1720444943103,20.0,141.35,141.3,1.41516835]
[1720444943304,20.0,141.39,141.32,7.0759]
[1720444943507,7.0746,141.35,141.31,40.7964]
[1720444943720,7.0746,141.35,141.32,1.41499486]
[1720444943921,7.0747,141.35,141.32,1.41499486]
[1720444944130,17.6811,141.4,141.34,15.0985]
[1720444944304,7.0739,141.37,141.35,1.41477753]
[1720444944809,7.0746,141.35,141.34,15.0985]
[1720444945239,7.0754,141.34,141.31,48.8185]
[1720444946609,7.0754,141.34,141.32,0.37406658]
[1720444947314,17.6841,141.37,141.31,15.0985]
[1720444947315,7.0757,141.33,141.31,15.0985]
[1720444947504,7.0752,141.34,141.31,15.0985]
[1720444948106,17.6811,141.4,141.31,16.51363485]
[1720444948314,20.0,141.39,141.31,16.51363485]
[1720444949125,7.0744,141.36,141.31,16.51363485]
[1720444949919,7.0739,141.37,141.31,16.51363485]
[1720444950228,7.0739,141.37,141.32,0.17]
[1720444951322,7.0732,141.38,141.32,0.17]
[1720444951630,7.0727,141.39,141.33,33.72]
[1720444951807,7.0727,141.39,141.34,1.58014809]
[1720444952328,17.6776,141.43,141.34,0.17]
[1720444952536,7.0719,141.41,141.34,0.17]
[1720444952709,7.0719,141.41,141.36,33.72]
[1720444953121,7.0713,141.42,141.37,1.41438292]
[1720444953927,7.0722,141.4,141.37,1.41438292]
[1720444955116,7.0728,141.39,141.36,33.72]
[1720444955306,17.6779,141.42,141.33,33.72]
[1720444955512,7.0739,141.37,141.33,33.72]
[1720444956223,7.0731,141.38,141.33,33.72]
[1720444956434,7.0722,141.4,141.34,1.41470382]
[1720444956610,7.0718,141.41,141.34,1.41470382]
[1720444956816,17.6749,141.45,141.35,33.72]
[1720444957132,20.0,141.44,141.36,1.41446835]
[1720444957716,7.0722,141.4,141.36,1.41446835]
[1720444958838,7.0716,141.41,141.36,1.41446835]
[1720444959512,7.0712,141.42,141.36,1.41446835]
[1720444960328,7.0708,141.43,141.38,15.6681]
[1720444960532,7.0708,141.43,141.39,1.41426652]
[1720444960716,7.0708,141.43,141.4,1.41416675]
[1720444961631,7.0714,141.42,141.38,15.6681]
[1720444961822,7.0716,141.41,141.38,15.6681]
[1720444962217,27.0703,141.44,141.38,15.6681]
[1720444962434,17.8701,141.49,141.4,33.72]
[1720444962628,0.2,141.49,141.41,1.5838542]
[1720444962938,7.0689,141.47,141.42,33.72]
[1720444963112,7.0689,141.47,141.43,1.41365426]
[1720444963518,7.0691,141.46,141.43,1.41365426]
[1720444964444,7.0684,141.48,141.44,21.8267]
[1720444964625,7.0684,141.48,141.45,1.4134547]
[1720444965311,7.0686,141.47,141.45,1.4134547]
[1720444965828,0.2,141.49,141.44,23.24043494]
[1720444966045,20.2,141.49,141.44,21.8267]
[1720444966934,7.0696,141.45,141.44,21.8267]
[1720444967440,7.0693,141.46,141.44,21.8267]
[1720444968939,7.0687,141.47,141.44,15.1611]
[1720444970645,7.0682,141.48,141.45,1.41353506]
[1720444972342,0.2,141.49,141.46,1.41343513]
[1720444972946,0.2,141.49,141.47,6.4875]
[1720444973145,0.2,141.49,141.48,1.41338666]
[1720444974741,17.6589,141.58,141.48,50.17428666]
[1720444974926,17.6589,141.58,141.49,1.41311553]
[1720444975548,7.0654,141.54,141.49,1.41311553]
[1720444975847,7.0656,141.53,141.49,1.41311553]
[1720444976424,7.0653,141.54,141.49,1.41311553]
[1720444979143,7.0657,141.53,141.49,1.41311553]
[1720444979448,7.066,141.53,141.49,1.41311553]